bitfinex-derivatives/quotes_SOLF0:USTF0_20251025
["timestamp","ask_amount","ask_price","bid_price","bid_amount"]
[1761379396958,2.59,194.13,194.09,7.4164]
[1761379397158,2.59,194.13,194.1,2.78]
[1761379399759,2.59,194.13,194.06,2.78]
[1761379399960,6.52139696,194.13,194.06,2.78]
[1761379400156,2.59,194.13,194.06,2.78]
[1761379400754,2.59,194.12,194.07,2.78]
[1761379407466,2.59,194.12,194.08,2.78]
[1761379410874,2.59,194.12,194.09,2.78]
[1761379411869,74.37660498,194.15,194.09,7.4163]
[1761379412074,3.93310484,194.14,194.04,2.78]
[1761379412273,3.93351631,194.14,194.04,2.78]
[1761379412480,6.52351631,194.14,194.04,2.78]
[1761379412666,2.59,194.14,194.04,2.78]
[1761379413275,2.59,194.14,194.11,2.78]
[1761379423385,2.59,194.14,194.1,4.6361]
[1761379423884,2.59,194.14,194.1,7.3361]
[1761379431592,3.95047267,194.13,194.1,7.3361]
[1761379431783,2.71,194.13,194.1,7.3361]
[1761379442002,2.71,194.13,194.1,4.6361]
[1761379442301,2.71,194.13,194.1,7.2261]
[1761379442900,2.71,194.13,194.11,2.59]
[1761379443496,4.34599964,194.17,194.11,2.59]
[1761379443698,2.65,194.15,194.11,2.59]
[1761379443900,3.93035072,194.14,194.11,2.59]
[1761379444100,3.93035072,194.13,194.11,2.59]
[1761379444300,2.65,194.15,194.11,2.59]
[1761379444500,6.58038513,194.14,194.11,2.59]
[1761379444793,3.93038513,194.13,194.11,2.59]
[1761379444997,2.65,194.14,194.11,2.59]
[1761379445191,3.93038513,194.13,194.11,2.59]
[1761379445400,2.65,194.14,194.11,2.59]
[1761379445599,3.93050703,194.13,194.11,2.59]
[1761379445899,2.65,194.14,194.11,2.59]
[1761379446101,3.93030571,194.13,194.11,2.59]
[1761379446301,2.65,194.14,194.11,2.59]
[1761379446503,3.92991927,194.13,194.11,2.59]
[1761379446704,6.99599964,194.17,194.11,2.59]
[1761379447001,3.92991927,194.16,194.11,2.59]
[1761379447204,6.57991927,194.15,194.11,2.59]
[1761379447506,3.92991927,194.14,194.11,2.59]
[1761379447707,7.45301351,194.18,194.11,2.59]
[1761379448009,2.67,194.16,194.12,2.7]
[1761379448308,3.93024965,194.15,194.13,2.7]
[1761379448504,2.67,194.2,194.13,2.7]
[1761379448806,6.60085269,194.19,194.13,2.7]
[1761379449009,6.60085269,194.18,194.13,2.7]
[1761379449210,3.93085269,194.17,194.13,2.7]
[1761379449407,3.93085269,194.16,194.13,2.7]
[1761379449605,2.67,194.18,194.13,2.7]
[1761379449903,3.93017366,194.17,194.13,2.7]
[1761379450095,3.93017366,194.16,194.14,2.7]
[1761379450300,2.67,194.18,194.14,2.7]
[1761379450496,3.92963986,194.17,194.14,2.7]
[1761379450701,3.92963986,194.16,194.14,2.7]
[1761379450907,2.67,194.18,194.14,2.7]
[1761379451109,6.59963986,194.17,194.14,2.7]
[1761379451302,3.92963986,194.16,194.14,2.7]
[1761379451503,2.67,194.17,194.11,7.336]
[1761379451711,2.67,194.15,194.11,7.336]
[1761379451911,2.67,194.15,194.12,2.7]
[1761379455909,2.67,194.18,194.12,2.7]
[1761379456210,6.59896058,194.17,194.12,2.7]
[1761379456412,3.92896058,194.16,194.12,2.7]
[1761379456611,3.92896058,194.15,194.12,2.7]
[1761379456806,2.67,194.17,194.12,2.7]
[1761379457006,3.92907209,194.16,194.12,2.7]
[1761379457306,2.67,194.17,194.12,2.7]
[1761379457506,3.92922203,194.16,194.12,2.7]
[1761379457707,2.67,194.17,194.12,2.7]
[1761379457910,3.92922203,194.16,194.12,2.7]
[1761379458107,2.67,194.17,194.12,2.7]
[1761379462012,3.92753853,194.16,194.12,2.7]
[1761379462217,2.67,194.15,194.12,2.7]
[1761379463715,6.59765024,194.16,194.12,2.7]
[1761379463915,2.67,194.16,194.12,2.7]
[1761379467512,3.92691736,194.15,194.09,62.04]
[1761379467717,2.67,194.14,194.09,64.74]
[1761379468020,2.67,194.14,194.1,2.7]
[1761379469914,2.67,194.14,194.09,64.74]
[1761379471325,2.67,194.14,194.1,2.7]
[1761379471827,2.67,194.14,194.09,62.04]
[1761379472419,2.67,194.14,194.09,64.74]
[1761379472625,2.67,194.14,194.1,2.7]
[1761379474029,2.67,194.14,194.09,64.74]
[1761379474327,2.67,194.14,194.1,2.7]
[1761379477832,2.67,194.14,194.09,62.04]
[1761379478524,4.1416069,194.17,194.09,64.71]
[1761379478526,2.69,194.12,194.09,64.71]
[1761379479532,2.69,194.12,194.09,2.67]
[1761379488132,2.69,194.12,194.09,64.71]
[1761379489725,2.69,194.12,194.1,2.67]
[1761379498740,2.69,194.12,194.09,64.85]
[1761379500043,2.69,194.12,194.1,2.81]
[1761379500442,2.69,194.12,194.09,62.04]
[1761379501144,2.69,194.12,194.06,2.81]
[1761379501343,2.69,194.12,194.04,49.76235846]
[1761379501344,2.69,194.12,194.08,64.85]
[1761379503949,2.69,194.12,194.09,2.81]
[1761379505949,3.94012562,194.11,194.09,2.81]
[1761379506148,2.69,194.12,194.09,2.81]
[1761379506348,6.67025153,194.11,194.09,2.81]
[1761379506549,2.73,194.11,194.08,64.85]
[1761379510363,2.73,194.11,194.09,2.82]
[1761379512365,2.73,194.11,194.05,2.82]
[1761379512662,2.7,194.09,194.04,2.82]
[1761379512866,4.80301351,194.13,194.04,2.82]
[1761379512867,2.7,194.07,194.04,2.82]
[1761379513668,2.7,194.07,194.03,62.04]
[1761379514557,3.93723077,194.06,194.03,62.04]
[1761379514758,2.7,194.04,194.01,2.82]
[1761379518261,2.7,194.04,194.0,64.86]
[1761379520373,2.7,194.04,194.0,2.82]
[1761379524074,2.7,194.07,194.0,2.82]
[1761379528075,2.7,194.07,193.98,62.06]
[1761379528475,2.7,194.06,193.98,62.06]
[1761379530278,2.7,194.06,193.98,64.88]
[1761379533182,2.7,194.06,193.99,2.82]
[1761379537979,3.91759999,194.07,193.99,2.82]
[1761379538182,71.89121016,194.17,194.01,15.46]
[1761379538388,3.91960623,194.16,194.03,2.68]
[1761379538691,2.79,194.18,194.06,2.68]
[1761379538889,6.70960623,194.18,194.08,2.68]
[1761379539089,2.79,194.18,194.08,2.68]
[1761379539990,6.70978368,194.18,194.08,2.68]
[1761379540190,2.79,194.18,194.08,2.68]
[1761379540892,0.8963874,194.24,194.07,62.3]
[1761379540893,2.79,194.26,194.1,2.68]
[1761379541084,2.79,194.26,194.11,62.0]
[1761379541285,2.79,194.25,194.12,2.68]
[1761379541490,2.79,194.24,194.12,2.68]
[1761379543995,2.79,194.23,194.12,2.68]
[1761379544294,2.79,194.22,194.12,2.68]
[1761379571516,2.79,194.22,194.1,62.34]
[1761379571705,2.79,194.22,194.1,65.19]
[1761379572616,3.90277658,194.22,194.11,2.85]
[1761379572804,2.76,194.21,194.11,2.85]
[1761379575117,3.83165711,194.21,194.11,2.85]
[1761379575318,2.76,194.2,194.11,2.85]
[1761379581130,2.76,194.18,194.11,2.85]
[1761379581331,6.59165711,194.18,194.11,2.85]
[1761379581529,2.76,194.18,194.11,2.85]
[1761379582230,2.76,194.16,194.11,2.85]
[1761379582441,2.76,194.15,194.11,2.85]
[1761379583926,2.76,194.14,194.1,65.19]
[1761379584132,2.76,194.14,194.11,2.85]
[1761379609558,2.7,194.18,194.11,2.85]
[1761379609761,6.56560456,194.17,194.11,2.85]
[1761379609960,3.86560456,194.16,194.11,2.85]
[1761379610162,3.86560456,194.15,194.11,2.85]
[1761379610362,3.86560456,194.18,194.11,2.85]
[1761379610563,3.86560456,194.17,194.11,2.85]
[1761379610862,2.7,194.19,194.11,2.85]
[1761379611065,3.86560284,194.18,194.11,2.85]
[1761379611259,2.7,194.19,194.11,2.85]
[1761379611460,3.866257,194.18,194.11,2.85]
[1761379611758,2.7,194.19,194.11,2.85]
[1761379611962,3.86639843,194.18,194.11,2.85]
[1761379612161,2.7,194.19,194.11,2.85]
[1761379612463,3.86650562,194.18,194.11,2.85]
[1761379612654,2.7,194.19,194.11,2.85]
[1761379612857,3.86445262,194.18,194.11,2.85]
[1761379613071,2.7,194.19,194.11,2.85]
[1761379613363,3.86449006,194.18,194.11,2.85]
[1761379613556,2.7,194.19,194.11,2.85]
[1761379613754,6.56448814,194.18,194.11,2.85]
[1761379613963,2.7,194.18,194.11,2.85]
[1761379627378,6.5816432,194.18,194.11,2.85]
[1761379627578,2.7,194.18,194.11,2.85]
[1761379633079,6.54972202,194.21,194.11,2.85]
[1761379633284,3.87972202,194.2,194.11,2.85]
[1761379633483,3.87972202,194.19,194.11,2.85]
[1761379633683,2.67,194.19,194.11,2.85]
[1761379635677,2.67,194.18,194.11,2.85]
[1761379643783,3.87814183,194.17,194.11,2.85]
[1761379643989,2.67,194.16,194.11,2.85]
[1761379673823,3.86642629,194.17,194.11,2.85]
[1761379674021,2.86,194.19,194.11,2.85]
[1761379674230,3.86577876,194.18,194.11,2.85]
[1761379674433,2.86,194.19,194.11,2.85]
[1761379674622,6.72595534,194.18,194.11,2.85]
[1761379674824,2.86,194.18,194.11,2.85]
[1761379679133,87.86812778,194.22,194.08,2.7]
[1761379679336,6.49592312,194.21,194.08,2.7]
[1761379679633,68.06741006,194.22,194.08,2.7]
[1761379679634,6.49592312,194.2,194.08,2.7]
[1761379679830,6.49592312,194.19,194.09,2.7]
[1761379680132,2.63,194.19,194.13,2.7]
[1761379682630,3.87296067,194.18,194.13,2.7]
[1761379682834,2.63,194.17,194.13,2.7]
[1761379699653,3.87158,194.21,194.13,2.7]
[1761379699654,6.60158,194.2,194.14,2.78]
[1761379699846,2.73,194.2,194.14,2.78]
[1761379701051,2.73,194.2,194.15,2.78]
[1761379701649,2.73,194.28,194.16,2.78]
[1761379701847,6.42286328,194.32,194.08,49.0616075]
[1761379701848,2.73,194.26,194.17,2.78]
[1761379702050,2.73,194.24,194.17,2.78]
[1761379703847,2.73,194.23,194.17,2.78]
[1761379707050,2.73,194.26,194.19,4.6339]
[1761379707256,2.73,194.31,194.2,2.78]
[1761379707554,2.73,194.29,194.2,2.78]
[1761379708160,2.73,194.29,194.2,4.6337]
[1761379708360,2.73,194.29,194.21,2.78]
[1761379720389,2.73,194.29,194.22,2.83]
[1761379727991,2.73,194.29,194.23,2.83]
[1761379728895,2.82,194.35,194.24,2.83]
[1761379729991,2.82,194.35,194.25,4.6325]
[1761379730289,2.82,194.35,194.26,2.83]
[1761379743197,2.82,194.35,194.23,2.63]
[1761379745006,2.74,194.31,194.23,2.63]
[1761379747200,2.74,194.31,194.24,2.63]
[1761379750306,2.74,194.31,194.25,2.66]
[1761379763918,2.74,194.31,194.22,74.27931793]
[1761379764115,2.74,194.31,194.22,2.66]
[1761379764327,2.79,194.29,194.22,2.66]
[1761379792446,2.79,194.29,194.2,62.04]
[1761379792748,2.81,194.27,194.2,62.04]
[1761379793145,2.81,194.27,194.2,64.71]
[1761379796453,2.81,194.27,194.21,2.67]
[1761379802757,3.89114851,194.26,194.21,2.67]
[1761379802961,2.66,194.25,194.21,2.67]
[1761379808361,2.85,194.28,194.21,2.67]
[1761379825981,3.89273013,194.27,194.2,62.04]
[1761379826180,2.85,194.26,194.2,62.04]
[1761379826480,2.85,194.26,194.2,64.85]
[1761379831386,2.85,194.26,194.21,2.81]
[1761379860816,2.85,194.26,194.2,62.04]
[1761379861115,2.73,194.24,194.21,2.75]
[1761379898544,2.61,194.22,194.18,2.79]
[1761379898743,2.61,194.2,194.18,2.79]
[1761379899042,2.61,194.24,194.18,2.79]
[1761379899233,2.61,194.22,194.18,2.79]
[1761379899640,6.55816213,194.21,194.18,2.79]
[1761379899835,2.61,194.21,194.18,2.79]
[1761379902545,2.61,194.26,194.18,2.79]
[1761379902842,2.61,194.24,194.18,2.79]
[1761379903045,2.61,194.22,194.18,2.79]
[1761379912554,2.61,194.22,194.16,62.02]
[1761379912856,2.61,194.22,194.17,2.79]
[1761379921259,2.64,194.26,194.17,2.79]
[1761379921458,3.94203713,194.25,194.17,2.79]
[1761379921658,2.64,194.26,194.17,2.79]
[1761379921852,82.24183704,194.28,194.17,2.79]
[1761379921853,6.58209437,194.25,194.17,2.79]
[1761379922155,69.88183704,194.28,194.17,2.79]
[1761379922350,3.9422854,194.27,194.17,2.79]
[1761379922550,3.9422854,194.26,194.17,2.79]
[1761379922857,3.99246382,194.25,194.17,2.79]
[1761379923061,69.88183704,194.28,194.2,2.7]
[1761379923359,2.64,194.26,194.22,2.7]
[1761379923560,3.99205835,194.25,194.22,2.7]
[1761379923762,2.64,194.26,194.22,2.7]
[1761379924060,3.99206952,194.25,194.22,2.7]
[1761379924253,2.64,194.26,194.22,2.7]
[1761379924458,3.99208016,194.25,194.22,2.7]
[1761379924757,2.64,194.26,194.22,2.7]
[1761379925058,3.99208073,194.25,194.22,2.7]
[1761379925258,2.64,194.26,194.22,2.7]
[1761379925449,3.99209194,194.25,194.22,2.7]
[1761379925647,2.64,194.26,194.22,2.7]
[1761379925845,3.99209194,194.25,194.22,2.7]
[1761379926049,2.64,194.25,194.22,2.7]
[1761379936362,70.04183704,194.28,194.22,2.7]
[1761379936551,6.7926258,194.27,194.22,2.7]
[1761379936762,6.7926258,194.26,194.22,2.7]
[1761379936959,2.8,194.26,194.22,2.7]
[1761379956092,4.79835247,194.3,194.22,2.7]
[1761379956093,2.8,194.29,194.22,2.7]
[1761379956390,6.78928942,194.28,194.22,2.7]
[1761379956588,2.8,194.28,194.22,2.7]
[1761379957990,2.8,194.28,194.22,4.6332]
[1761379958192,2.8,194.28,194.23,2.76]
[1761379969304,2.59,194.26,194.23,2.76]
[1761379972204,2.59,194.29,194.23,2.76]
[1761379972395,6.58075474,194.28,194.23,2.76]
[1761379972594,2.59,194.28,194.23,2.76]
[1761379990609,2.75,194.26,194.22,2.62]
[1761379993907,2.75,194.26,194.21,64.64]
[1761379995406,2.75,194.26,194.21,62.02]
[1761379995608,2.75,194.24,194.21,62.02]
[1761379996915,2.75,194.24,194.21,64.64]
[1761379997517,2.75,194.24,194.22,2.62]
[1761379998820,2.75,194.27,194.22,2.62]
[1761379999114,6.73332602,194.26,194.22,2.62]
[1761379999304,2.75,194.26,194.22,2.62]
[1761380017523,2.75,194.3,194.22,2.62]
[1761380017728,2.75,194.31,194.22,2.62]
[1761380017922,3.98395205,194.3,194.22,2.62]
[1761380018125,2.75,194.31,194.22,2.62]
[1761380018126,2.75,194.31,194.23,2.64]
[1761380018526,3.98357311,194.3,194.23,2.64]
[1761380018831,2.75,194.32,194.23,2.64]
[1761380019129,6.7335601,194.31,194.23,2.64]
[1761380019330,3.9835601,194.3,194.23,2.64]
[1761380019531,2.75,194.31,194.23,2.64]
[1761380019730,6.7332524,194.3,194.23,2.64]
[1761380019918,2.75,194.3,194.23,2.64]
[1761380021124,2.75,194.28,194.23,2.64]
[1761380024324,6.73264708,194.32,194.23,2.64]
[1761380024526,2.75,194.31,194.23,2.64]
[1761380025023,2.75,194.31,194.24,2.64]
[1761380033427,3.97930973,194.3,194.24,64.6]
[1761380033627,2.75,194.29,194.24,64.6]
[1761380034537,4.79835247,194.33,194.22,61.96]
[1761380034538,2.75,194.27,194.22,61.96]
[1761380034738,2.75,194.25,194.22,64.6]
[1761380039141,2.75,194.25,194.23,2.66]
[1761380039342,2.75,194.25,194.19,2.66]
[1761380039537,2.75,194.23,194.19,2.66]
[1761380041042,2.75,194.23,194.17,61.96]
[1761380041339,2.75,194.23,194.17,64.62]
[1761380042839,2.75,194.23,194.18,2.66]
[1761380055760,2.75,194.23,194.17,61.96]
[1761380056361,2.75,194.23,194.17,64.74]
[1761380058962,2.75,194.23,194.17,61.96]
[1761380059262,2.75,194.23,194.18,2.78]
[1761380080581,4.25035984,194.27,194.18,2.78]
[1761380080774,2.72,194.26,194.18,2.78]
[1761380081081,3.97825365,194.25,194.18,2.78]
[1761380081279,3.97825365,194.24,194.18,2.78]
[1761380081482,3.97825365,194.23,194.18,2.78]
[1761380081780,2.72,194.26,194.18,2.78]
[1761380082081,3.97893896,194.25,194.18,2.78]
[1761380082281,3.97893896,194.24,194.18,2.78]
[1761380082482,6.69893896,194.23,194.18,2.78]
[1761380082781,2.72,194.23,194.18,2.78]
[1761380084184,6.70281021,194.22,194.18,2.78]
[1761380084377,2.72,194.22,194.18,2.78]
[1761380100493,3.97998853,194.21,194.17,64.67]
[1761380100796,2.79,194.2,194.17,64.67]
[1761380100992,2.79,194.2,194.18,2.71]
[1761380104195,2.79,194.2,194.19,61.98]
[1761380108005,2.79,194.2,194.19,64.77]
[1761380109509,2.76,194.25,194.19,64.77]
[1761380109713,2.76,194.23,194.19,64.77]
[1761380109898,2.76,194.21,194.19,64.77]
[1761380116411,2.76,194.21,194.19,61.98]
[1761380116614,2.76,194.21,194.2,2.79]
[1761380117111,19.79140412,194.27,194.2,2.79]
[1761380117112,2.76,194.26,194.2,2.79]
[1761380117317,2.76,194.24,194.2,2.79]
[1761380117515,2.76,194.22,194.2,2.79]
[1761380118523,2.76,194.26,194.2,2.79]
[1761380118719,2.76,194.24,194.2,2.79]
[1761380118919,6.73808052,194.23,194.2,2.79]
[1761380119220,6.73808052,194.22,194.2,2.79]
[1761380119420,2.76,194.22,194.2,2.79]
[1761380120322,7.11169402,194.26,194.2,2.79]
[1761380120510,3.97819931,194.25,194.2,2.79]
[1761380120716,6.73819931,194.24,194.2,2.79]
[1761380120915,3.97819931,194.23,194.2,2.79]
[1761380121116,3.97819931,194.22,194.2,2.79]
[1761380121312,2.76,194.24,194.2,2.79]
[1761380121518,3.97862308,194.23,194.2,2.79]
[1761380121816,3.97862308,194.22,194.2,2.79]
[1761380122016,2.76,194.24,194.2,2.79]
[1761380122212,6.73862308,194.23,194.2,2.79]
[1761380122516,3.97862308,194.22,194.2,2.79]
[1761380122716,2.76,194.23,194.2,2.79]
[1761380122913,3.97868765,194.22,194.2,2.79]
[1761380123117,2.76,194.23,194.2,2.79]
[1761380123320,3.97873552,194.22,194.2,2.79]
[1761380123520,2.76,194.23,194.2,2.79]
[1761380123720,3.97875663,194.22,194.2,2.79]
[1761380123925,2.76,194.23,194.2,2.79]
[1761380124231,6.73875663,194.22,194.2,2.79]
[1761380124525,2.76,194.22,194.2,2.79]
[1761380132025,2.76,194.22,194.19,61.98]
[1761380132231,2.76,194.22,194.19,64.77]
[1761380134134,2.76,194.22,194.2,2.79]
[1761380138224,2.61,194.2,194.15,2.87]
[1761380138536,3.97908325,194.19,194.15,2.87]
[1761380138734,2.61,194.2,194.15,2.87]
[1761380138935,3.97922162,194.19,194.15,2.87]
[1761380139135,2.61,194.2,194.15,2.87]
[1761380139336,3.9792014,194.19,194.15,2.87]
[1761380139530,2.61,194.2,194.15,2.87]
[1761380139736,3.97798751,194.19,194.15,2.87]
[1761380139937,2.61,194.2,194.15,2.87]
[1761380140136,3.9776605,194.19,194.15,2.87]
[1761380140336,2.61,194.2,194.15,2.87]
[1761380140541,3.97680736,194.19,194.15,2.87]
[1761380140743,2.61,194.2,194.15,2.87]
[1761380140930,6.58680793,194.19,194.15,2.87]
[1761380141134,2.61,194.19,194.15,2.87]
[1761380141637,6.30221678,194.24,194.15,2.87]
[1761380141839,2.61,194.22,194.15,2.87]
[1761380142145,6.58613339,194.21,194.15,2.87]
[1761380142341,3.97613339,194.2,194.15,2.87]
[1761380142531,2.61,194.21,194.15,2.87]
[1761380142737,6.58570161,194.2,194.15,2.87]
[1761380142938,2.61,194.2,194.15,2.87]
[1761380143435,2.61,194.23,194.15,2.87]
[1761380143636,3.97522657,194.22,194.15,2.87]
[1761380143942,2.61,194.23,194.15,2.87]
[1761380144138,3.9756793,194.22,194.15,2.87]
[1761380144336,2.61,194.23,194.16,61.98]
[1761380144543,2.61,194.21,194.17,2.87]
[1761380147544,2.61,194.21,194.18,64.85]
[1761380149244,6.58482094,194.2,194.18,64.85]
[1761380149544,2.61,194.2,194.18,64.85]
[1761380152045,2.61,194.24,194.19,2.87]
[1761380152246,2.61,194.22,194.19,2.87]
[1761380156844,83.09450086,194.25,194.19,2.87]
[1761380157049,3.97500744,194.24,194.19,2.87]
[1761380157245,83.09450086,194.25,194.19,2.87]
[1761380157446,3.97500803,194.24,194.19,2.87]
[1761380157646,83.09450086,194.25,194.19,2.87]
[1761380157950,3.97492969,194.24,194.19,2.87]
[1761380158148,1.49270868,194.27,194.19,2.87]
[1761380158448,3.97509631,194.26,194.19,2.87]
[1761380158644,3.97509631,194.25,194.19,2.87]
[1761380158844,2.66,194.26,194.22,2.72]
[1761380159048,6.63470738,194.25,194.22,2.72]
[1761380159244,2.66,194.25,194.22,2.72]
[1761380166156,2.66,194.29,194.22,2.72]
[1761380166353,2.66,194.27,194.22,2.72]
[1761380170656,2.66,194.27,194.2,42.1]
[1761380170845,2.66,194.27,194.21,2.67]
[1761380177757,2.85,194.26,194.21,2.67]
[1761380179756,2.85,194.25,194.21,2.67]
[1761380181770,2.85,194.28,194.21,2.67]
[1761380181971,3.92760352,194.27,194.21,2.67]
[1761380182675,2.85,194.28,194.21,2.67]
[1761380182876,3.92760352,194.27,194.21,2.67]
[1761380183176,6.77760352,194.27,194.21,2.67]
[1761380183374,2.85,194.27,194.21,2.67]
[1761380184273,6.77864665,194.27,194.21,2.67]
[1761380184473,2.85,194.27,194.21,2.67]
[1761380185669,3.92928901,194.3,194.21,2.67]
[1761380185875,3.92928901,194.29,194.21,2.67]
[1761380186073,2.85,194.3,194.21,2.67]
[1761380186273,19.8095081,194.33,194.21,2.67]
[1761380186274,2.85,194.28,194.22,61.96]
[1761380186480,2.85,194.26,194.22,64.63]
[1761380187975,2.85,194.26,194.19,2.67]
[1761380188178,3.93034519,194.3,194.19,61.98]
[1761380188179,2.85,194.24,194.19,61.98]
[1761380188779,2.85,194.24,194.19,64.65]
[1761380190575,2.85,194.24,194.2,2.67]
[1761380199285,6.78730914,194.23,194.2,2.67]
[1761380199482,2.81,194.23,194.2,2.67]
[1761380228605,2.68,194.26,194.2,2.67]
[1761380228799,2.68,194.24,194.2,2.67]
[1761380228992,3.9685045,194.23,194.2,2.67]
[1761380229196,2.68,194.24,194.2,2.67]
[1761380229397,6.64879801,194.23,194.2,2.67]
[1761380229602,2.68,194.23,194.2,2.67]
[1761380231209,3.97003022,194.22,194.2,2.67]
[1761380231401,2.68,194.23,194.2,2.67]
[1761380231706,3.97002987,194.22,194.2,2.67]
[1761380231905,2.68,194.23,194.2,2.67]
[1761380232110,3.97003022,194.22,194.2,2.67]
[1761380232403,2.68,194.23,194.2,2.67]
[1761380232606,3.9714937,194.22,194.2,2.67]
[1761380232802,2.68,194.23,194.2,2.67]
[1761380233003,3.9714937,194.22,194.2,2.67]
[1761380233202,2.68,194.23,194.2,2.67]
[1761380233403,3.97139867,194.22,194.2,2.67]
[1761380233605,2.68,194.23,194.2,2.67]
[1761380233802,3.9713981,194.22,194.2,2.67]
[1761380234005,2.68,194.23,194.2,2.67]
[1761380234206,3.9713981,194.22,194.2,2.67]
[1761380234405,2.68,194.23,194.2,2.67]
[1761380234602,3.97132716,194.22,194.2,2.67]
[1761380234807,2.68,194.23,194.2,2.67]
[1761380235101,3.97116575,194.22,194.2,2.67]
[1761380235308,2.68,194.23,194.19,61.98]
[1761380235607,2.68,194.21,194.19,61.98]
[1761380235809,2.68,194.21,194.19,64.62]
[1761380238414,2.68,194.24,194.2,2.64]
[1761380238612,2.68,194.22,194.2,2.64]
[1761380249224,2.68,194.24,194.2,2.64]
[1761380249423,6.65066056,194.23,194.2,2.64]
[1761380249627,3.97066056,194.22,194.2,2.64]
[1761380249827,2.68,194.24,194.2,2.64]
[1761380250129,3.97066056,194.23,194.2,2.64]
[1761380250315,3.97066056,194.22,194.2,2.64]
[1761380250520,2.68,194.24,194.2,2.64]
[1761380250720,2.68,194.22,194.2,2.64]
[1761380264143,4.12263798,194.25,194.2,2.64]
[1761380264346,3.97706038,194.24,194.2,2.64]
[1761380264646,3.97706038,194.23,194.2,2.64]
[1761380264948,3.97706038,194.22,194.2,2.64]
[1761380265144,2.63,194.24,194.2,2.64]
[1761380265344,6.60740443,194.23,194.2,2.64]
[1761380265544,3.97740443,194.22,194.2,2.64]
[1761380265847,4.12263798,194.25,194.2,2.64]
[1761380266149,3.97740614,194.24,194.2,2.64]
[1761380266341,3.97740614,194.23,194.2,2.64]
[1761380266536,3.97740614,194.22,194.2,2.64]
[1761380266848,4.12263798,194.25,194.2,2.64]
[1761380267049,3.97740684,194.24,194.2,2.64]
[1761380267345,3.97740684,194.23,194.2,2.64]
[1761380267537,3.97740684,194.22,194.2,2.64]
[1761380267740,4.12263798,194.25,194.2,2.64]
[1761380267939,3.97740692,194.24,194.2,2.64]
[1761380268140,3.97740692,194.23,194.2,2.64]
[1761380268341,3.97740692,194.22,194.2,2.64]
[1761380268544,4.12263798,194.25,194.2,2.64]